Workbook

Sheet 收支总表
A2: 2024年江门市国资委国有资本经营预算收支总表
E3: 单位：万元
A4: 收 入 | D4: 支 出
A5: 项 目 | D5: 项 目
B6: 2024年一下 | C6: 2024年 | E6: 2024年（一上） | F6: 2024年一下 | G6: 2024年
A7: 国有资本经营收入 | B7: 1,022 | C7: 1,022 | D7: 国有资本经营预算支出 | E7: 0 | G7: 1,229
A8: （一）利润收入 | B8: 28 | C8: 28 | D8: （一）解决历史遗留问题及改革成本支出 | E8: 0 | G8: 167
A9: （二）股利、股息收入 | B9: 994 | C9: 994 | D9: （二）国有企业资本金注入 | E9: 0 | F9: 0 | G9: 462
A10: （三）产权转让收入 | B10: 0 | C10: 0 | D10: （三）国有企业政策性补贴 | E10: 0 | F10: 242 | G10: 600
A11: （四）清算收入 | B11: 0 | C11: 0 | D11: （四）其他国有资本经营预算支出 | E11: 0 | F11: 0 | G11: 0
A12: （五）其他国有资本经营收入 | B12: 0 | C12: 0 | D12: 转移性支出 | E12: 1,245 | F12: 894 | G12: 1,246
A13: 转移性收入 | B13: 0 | C13: 0 | D13: 国有资本经营预算转移支付
A14: 国有资本经营预算转移支付收入 | B14: 0 | C14: 0 | D14: 调出资金 | E14: 1,245 | F14: 894 | G14: 1,246
A16: 本年收入合计 | B16: 1,022 | C16: 1,022 | D16: 本年支出合计 | E16: 1,245 | G16: 2,475
A18: 上年结转 | B18: 285 | C18: 1,453 | D18: 结转下年 | E18: 1,230 | G18: 0
A19: 收入总计 | B19: 1,307 | C19: 2,475 | D19: 支出总计 | E19: 1,245 | G19: 2,475
A21: 本表按照财政部《2022年政府收支分类科目》中的国有资本经营预算收支科目填写。

Sheet 收入明细表 (hidden)
O1: 预表3
A2: 2024年江门市国资委国有资本经营预算收入明细表
O3: 单位：万元
A4: 科目编码 | B4: 科目名称 | C4: 国有比例 | D4: 预计2023年执行情况 | E4: 2023年预算数 | F4: 2024年预算数 | O4: 备注
F5: 2024年预算合计 | G5: 2022年税后利润 | H5: 以前年度未弥补亏损 | I5: 当年提取法定公积金 | J5: 应交利润基数 | K5: 上缴比例（%） | L5: 应交2022年税后利润 | M5: 应交以前年度税后利润 | N5: 增减%
B6: 栏次关系 | D6: 1 | E6: 2 | F6: 3=9+10 | G6: 4 | H6: 5 | I6: 6 | J6: 7=4-5-6 | K6: 8 | L6: 9=7*8 | M6: 10 | N6: 11
B7: 合 计 | F7: =F8+F20+F31+F32+F33+F34 -> 1,022.12
A8: 1030601 | B8: 一、利润收入 | D8: =D9+D10+D11+D13+D14+D15+D16+D17+D18+D19-D19 -> 7348.49 | E8: =E9+E10+E11+E13+E14+E15+E16+E17+E18+E19-E19 -> 7348.49 | F8: =F9+F10+F11+F13+F14+F15+F16+F17+F18+F19 -> 27.89 | G8: -638.64 | H8: -4,063.11 | I8: 774.93 | J8: 92.98 | K8: =F8/J8 -> 30% | L8: =L9+L10+L11+L13+L14+L15+L16+L17+L18+L19 -> 27.89 | M8: =M9+M10+M11+M13+M14+M15+M16+M17+M18+M19 -> 0 | N8: =(F8-E8)/E8 -> -99.62%
A9: （一） | B9: 江门市城市发展投资集团有限公司 | C9: 100.00% | D9: 7,323.49 | E9: 7,323.49 | F9: =L9+M9 -> 0 | G9: -414.27 | H9: 0 | I9: 760.22 | J9: 0 | K9: 30% | L9: 0 | M9: 0 | N9: =(F9-E9)/E9 -> -100.00% | O9: 以经审计的2022年度企业合并报表为基础，归属母公司合并净利润为-414.27万元，扣除当年计提的法定盈余公积760.22万元后，市发展集团合并应交利润基数为-1174.49万元，按零申报。
A10: （二） | B10: 江门公用事业集团有限公司 | C10: 100.00% | D10: 0 | E10: 0 | F10: =L10+M10 -> 0 | G10: -143.94 | H10: 0 | I10: 0 | J10: 0 | K10: 30% | L10: 0 | M10: 0 | N10: 0.00% | O10: 归母净利润为负数。 | P10: 缺正式审计报告
A11: （三） | B11: 江门市市直行政事业资产管理中心控股企业 | C11: 100.00% | D11: 25.00 | E11: 25.00 | F11: =L11+M11 -> 27.89 | G11: 92.98 | H11: 0 | I11: 0 | J11: 92.98 | K11: 30% | L11: =J11*K11 -> 27.89 | M11: 0 | N11: =(F11-E11)/E11 -> 11.58%
B12: 江门市五邑人力资源有限公司 | C12: 100.00% | D12: 25.00 | E12: 25.00 | F12: =L12+M12 -> 27.89 | G12: 92.98 | H12: 0 | I12: 0 | J12: 92.98 | K12: 30% | L12: =J12*K12 -> 27.89 | M12: 0 | N12: =F12/E12-1 -> 11.58% | O12: 2022年财务审计报告上净利润92.98万元，应交2024年经营预算收入28万元。
A13: （四） | B13: 江门日报社有限公司 | C13: 100.00% | D13: 0 | E13: 0 | F13: 0 | G13: -67.77 | H13: 0 | I13: 0 | J13: 0 | K13: 30% | L13: =J13*K13 -> 0 | M13: 0 | N13: 0.00% | O13: 归母净利润为负数。
A14: （五） | B14: 江门金羚集团有限公司 | C14: 100.00% | D14: 0 | E14: 0 | F14: 0 | G14: 87.73 | H14: -1,285.14 | I14: 0 | J14: 0 | K14: 30% | L14: 0 | M14: 0 | N14: 0.00% | O14: 弥补以前年度亏损。
A15: （六） | B15: 江门市文艺杂志社有限公司 | C15: 100.00% | D15: 0 | E15: 0 | F15: 0 | G15: -19.46 | H15: -128.14 | I15: 0 | J15: 0 | K15: 30% | L15: 0 | M15: 0 | N15: 0.00% | O15: 归母净利润为负数。 | P15: 缺正式审计报告
A16: （七） | B16: 江门市行事资产管理有限公司 | C16: 100.00% | D16: 0 | E16: 0 | F16: 0 | G16: -227.99 | H16: -2,297.38 | I16: 0 | J16: 0 | K16: 30% | L16: 0 | M16: 0 | N16: 0.00% | O16: 归母净利润为负数。
A17: （八） | B17: 广东五邑建设工程设计审查有限公司 | C17: 100.00% | D17: 0 | E17: 0 | F17: 0 | G17: 147.10 | H17: 0 | I17: 14.71 | J17: 0 | K17: 30% | L17: 0 | M17: 0 | N17: 0.00% | O17: 改制尚未完成，申请缓缴2024年利润收入，住建局已同意。
A18: （九） | B18: 江门电子口岸管理有限公司 | C18: 100.00% | D18: 0 | E18: 0 | F18: 0 | G18: 35.46 | H18: -352.45 | I18: 0 | J18: 0 | K18: 30% | L18: 0 | M18: 0 | N18: 0.00% | O18: 弥补以前年度亏损。
A19: （十） | B19: 江门市江发粮油商贸有限公司 | C19: 100.00% | D19: 61.59 | E19: 61.59 | F19: 0 | G19: -128.48 | H19: 0 | I19: 0 | J19: 0 | K19: 30% | L19: 0 | M19: 0 | N19: 0.00% | O19: 归母净利润为负数。
A20: 1030602 | B20: 二、股利、股息收入 | D20: =D21+D22+D23+D24+D25+D26+D27+D28+D29+D30+935 -> 2,023.98 | E20: =E21+E22+E23+E24+E25+E26+E27+E28+E29+E30+935 -> 2,023.98 | F20: =F21+F22+F23+F24+F25+F26+F27+F28+F29+F30 -> 994.23 | G20: 27,472.99 | H20: -38,101.11 | I20: 1,184.50 | J20: 17,859.79 | K20: 30% | L20: =L21+L22+L23+L24+L25+L26+L27+L28+L29+L30 -> 994.23 | M20: =M21+M22+M23+M24+M25+M26+M27+M28+M29+M30 -> 0.00 | N20: =F20/E20-1 -> -50.88%
A21: （一） | B21: 江门市银湖湾滨海新区投资开发有限公司 | C21: 7.05% | D21: 0 | E21: 0 | F21: =L21+M21 -> 0 | G21: 2797.51 | H21: 0 | I21: 319.76 | J21: =G21-I21 -> 2,477.75 | K21: 30% | L21: 0 | M21: 0 | N21: 0.00% | O21: 目前滨海投资公司全面投入滨海新区基础设施建设和配套项目建设，2022年税后净利润来源于政府补助收入，收入对应的资金已经全部用于滨海新区基础设施建设，剔除此部分收入实际净利润为负，因此本年度暂不分配利润，上缴的净利润为0。
A22: （二） | B22: 江门市金融投资控股有限公司 | C22: 83.40% | D22: 862.95 | E22: 862.95 | F22: 755.46 | G22: 3,386.94 | H22: 0.00 | I22: 326.11 | J22: =G22-I22 -> 3,060.83 | K22: 30% | L22: 755.46 | M22: 0 | N22: =F22/E22-1 -> -12.46% | O22: 我委持股83.4%，金控公司应交2022年税后利润3386.94万元，扣减法定公积后，应交基数3060.83万元，扣减华润燃气2022年已上交国资预算的770.19万（1848*持股比例41.67%），应交利润基数为2290.64万元，上缴总数905.83万元占利润基数比例为39.54%，其中应交国资委755.46万元（股比83.4%），应交交建集团150.37万元（股比16.6%）。
A23: （三） | B23: 江门市高新技术工业园有限公司 | C23: 90.78% | D23: 0 | E23: 0 | F23: 0 | G23: 7,219.07 | H23: 0.00 | I23: 0.00 | J23: 7,219.07 | K23: 0% | L23: 0 | M23: 0 | N23: 0.00% | O23: 由于经营困难，2022年度不进行利润分配
A24: （四） | B24: 江门市企业资产经营有限公司 | C24: 90.00% | D24: 0 | E24: 0 | F24: 0 | G24: 6,657.49 | H24: -37,727.03 | I24: 0 | J24: 0 | K24: 30% | L24: 0 | M24: 0 | N24: 0.00% | O24: 弥补以前年度亏损。 | P24: 缺正式审计报告
A25: （五） | B25: 南方出版传媒股份有限公司 | C25: 316.5万股 | D25: 104.00 | E25: 104.00 | F25: 148.00 | K25: 100% | L25: 148.00 | M25: 0 | N25: =F25/E25-1 -> 42.31% | O25: 持有股票
A26: （六） | B26: 江门市水务集团有限公司 | C26: 36.52% | D26: 0 | E26: 0 | F26: 0 | G26: -219.97 | H26: -252.63 | I26: 0 | J26: 0 | K26: 30% | L26: 0 | M26: 0 | N26: 0.00% | O26: 归母净利润为负数。
A27: （七） | B27: 江门公用设施投资控股有限公司 | C27: 6.61% | D27: 122.03 | E27: 122.03 | F27: =L27 -> 90.77 | G27: 6,901.34 | H27: 0.00 | I27: 475.61 | J27: 4,577.41 | K27: 30% | L27: =(G27-1848.32-I27)*0.3*0.0661 -> 90.77 | M27: 0 | N27: =F27/E27-1 -> -25.61% | O27: 公控公司2022年税后利润为6901.34万元，剔除2022年确认江门华润燃气上缴分红1848.32万元后，净利润为5053.02万元。扣减法定盈余公积金475.61万元后，应交利润基数为4577.41万元。按照30%计算应交分红为1373.22万元，上缴市国资委（持股6.61%）90.77万元。
A28: （八） | B28: 江门铁路投资有限公司 | C28: 0.06% | D28: 0 | E28: 0 | F28: 0 | G28: 0 | H28: 0 | I28: 0 | J28: 0 | K28: 30% | L28: 0 | M28: 0 | N28: 0.00% | O28: 我委持股0.6%
A29: （九） | B29: 江门中铁交通建设工程有限公司 | C29: 29.00% | D29: 0 | E29: 0 | F29: 0 | G29: 26.14 | H29: 0 | I29: 4.72 | J29: 0 | K29: 30% | L29: 0 | M29: 0 | N29: 0.00% | O29: 我委持股29%，不分配利润
A30: （十） | B30: 江门创融建筑工程有限公司 | C30: 51.00% | D30: 0 | E30: 0 | F30: =L30+M30 -> 0 | G30: 704.48 | H30: -121.45 | I30: 58.30 | J30: =G30+H30-I30 -> 524.73 | K30: 30% | L30: 0 | M30: 0 | N30: 100.00% | O30: 我委持有51%，分红转增实收资本
A31: 1030603 | B31: 三、产权转让收入
A32: 1030604 | B32: 四、清算收入
A33: 1030698 | B33: 五、其他国有资本经营预算收入
A34: 11005 | B34: 六、国有资本经营预算转移支付收入
A36: 说明：2024年国有资本经营预算利润收入数根据2022年的企业净利润为基础计算，“2022年税后利润”根据企业经审计的财务报表数据填报，并提供分配2022年股东分配利润的决议。
